bitfinex/quotes_SOLUSD_20251116
["timestamp","ask_amount","ask_price","bid_price","bid_amount"]
[1763308389083,39.67860918,138.79,138.64,57.95985215]
[1763308389084,10.06365232,138.77,138.73,0.66]
[1763308389617,0.69,138.76,138.7,0.66]
[1763308389904,10.06365232,138.74,138.7,0.66]
[1763308390278,17.27150608,138.74,138.7,10.72365232]
[1763308390598,7.20785376,138.74,138.7,10.72365232]
[1763308390782,7.20785376,138.74,138.71,0.66]
[1763308391011,39.64567691,138.78,138.73,10.06365232]
[1763308391233,16.99447691,138.78,138.74,10.06365232]
[1763308391438,27.05812923,138.78,138.74,10.06365232]
[1763308391732,27.05812923,138.78,138.71,0.66]
[1763308391733,10.06365232,138.75,138.72,0.66]
[1763308392098,9.78882769,138.76,138.72,0.66]
[1763308392324,10.06365232,138.75,138.72,0.66]
[1763308392529,17.27122653,138.75,138.72,0.66]
[1763308392728,17.27122653,138.75,138.68,18.02670259]
[1763308392729,9.78882769,138.72,138.68,0.66]
[1763308393049,10.06365232,138.71,138.68,0.66]
[1763308393199,9.78882769,138.72,138.68,0.66]
[1763308393404,19.85248001,138.72,138.68,0.66]
[1763308393907,10.06365232,138.71,138.68,0.66]
[1763308394101,10.06365232,138.71,138.59,38.01133537]
[1763308394102,10.06365232,138.69,138.62,7.21388089]
[1763308394297,10.06365232,138.69,138.64,10.06365232]
[1763308394532,10.06365232,138.69,138.65,10.06365232]
[1763308394714,10.06365232,138.69,138.63,0.67]
[1763308394924,10.06365232,138.69,138.65,10.06365232]
[1763308395117,10.06365232,138.69,138.66,0.67]
[1763308395419,10.06365232,138.67,138.63,10.73365232]
[1763308396037,7.21074642,138.69,138.61,10.73365232]
[1763308396038,10.06365232,138.65,138.61,10.73365232]
[1763308396207,10.06365232,138.65,138.61,0.67]
[1763308396405,10.06365232,138.66,138.62,10.73365232]
[1763308396734,19.85248001,138.66,138.62,10.73365232]
[1763308397027,0.66,138.65,138.59,2.60593088]
[1763308397235,10.06365232,138.64,138.6,0.67]
[1763308397434,9.78882769,138.63,138.6,10.73365232]
[1763308397734,9.78882769,138.63,138.6,0.17]
[1763308398025,17.93664634,138.64,138.59,11.9995832]
[1763308398026,9.78882769,138.6,138.59,1.93593088]
[1763308398234,9.78882769,138.61,138.59,1.93593088]
[1763308398438,10.72365232,138.6,138.59,1.93593088]
[1763308398639,20.51248001,138.6,138.59,1.93593088]
[1763308399424,32.44002769,138.56,138.55,0.1545262]
[1763308399634,7.87552781,138.59,138.55,0.1545262]
[1763308399803,10.06365232,138.58,138.55,0.1545262]
[1763308400007,10.06365232,138.58,138.55,0.8245262]
[1763308400205,10.72365232,138.58,138.55,0.1545262]
[1763308400405,7.21552781,138.59,138.55,0.1545262]
[1763308400605,17.28373043,138.6,138.55,10.88817852]
[1763308400835,10.06365232,138.61,138.55,8.04213292]
[1763308401028,17.27817434,138.61,138.57,10.06365232]
[1763308401227,10.06365232,138.6,138.56,0.67]
[1763308401730,17.27879815,138.6,138.56,10.73365232]
[1763308401929,17.27820579,138.61,138.56,10.73365232]
[1763308402148,17.93820579,138.61,138.56,10.73365232]
[1763308402334,0.66,138.6,138.55,0.1545262]
[1763308402516,10.06365232,138.59,138.55,0.1545262]
[1763308402834,25.25077019,138.61,138.55,0.1545262]
[1763308402835,13.54533582,138.61,138.56,6.33078235]
[1763308403233,13.54533582,138.61,138.55,0.1545262]
[1763308403234,9.78882769,138.59,138.55,0.1545262]
[1763308403535,6.33078235,138.58,138.55,0.1545262]
[1763308403843,76.00281904,138.63,138.55,0.1545262]
[1763308403844,7.21396623,138.62,138.55,0.1545262]
[1763308404050,6.33078235,138.56,138.55,0.1545262]
[1763308404216,16.11961004,138.56,138.55,0.1545262]
[1763308404710,0.66,138.58,138.55,0.1545262]
[1763308404915,6.33078235,138.57,138.55,0.1545262]
[1763308405222,61.31871301,138.62,138.56,0.67]
[1763308405223,0.66,138.61,138.56,0.67]
[1763308405557,13.54578956,138.6,138.56,7.00078235]
[1763308405854,7.21500721,138.6,138.57,0.67]
[1763308406063,6.33078235,138.62,138.58,6.33078235]
[1763308406264,6.33078235,138.62,138.57,0.67]
[1763308406433,6.33078235,138.61,138.57,7.00078235]
[1763308406631,35.0358882,138.63,138.57,0.67]
[1763308406632,6.33078235,138.6,138.57,0.67]
[1763308406854,6.33078235,138.6,138.55,7.15530855]
[1763308407061,0.66,138.62,138.55,7.15530855]
[1763308407363,6.33078235,138.6,138.56,0.67]
[1763308407552,6.33078235,138.59,138.55,0.1545262]
[1763308407858,6.33078235,138.56,138.55,0.1545262]
[1763308408041,16.11961004,138.56,138.55,0.1545262]
[1763308408242,16.77961004,138.56,138.55,1e-08]
[1763308409361,23.9967001,138.56,138.55,1e-08]
[1763308410366,30.32748245,138.56,138.37,1.99999999]
[1763308410547,22.6512,138.47,138.3,1.93593088]
[1763308410754,32.44002769,138.45,138.3,23.64438632]
[1763308411063,23.3112,138.46,138.3,1.93593088]
[1763308411064,9.78882769,138.37,138.3,1.93593088]
[1763308411264,50.0,138.42,138.3,1.93593088]
[1763308411475,22.6512,138.31,138.3,1.93593088]
[1763308411641,9.78882769,138.31,138.3,1.93593088]
[1763308411837,8.11882769,138.31,138.3,2.60593088]
[1763308412059,8.11882769,138.31,138.3,1.93593088]
[1763308412360,63.80757861,138.38,138.3,8.26671323]
[1763308412361,22.6512,138.37,138.3,8.26671323]
[1763308412565,28.98198235,138.37,138.3,1.93593088]
[1763308412776,22.6512,138.37,138.3,1.93593088]
[1763308413077,22.6512,138.34,138.3,1.93593088]
[1763308413432,57.88315837,138.38,138.3,1.93593088]
[1763308413433,22.6512,138.35,138.3,1.93593088]
[1763308413631,6.33078235,138.36,138.3,1.93593088]
[1763308413632,0.66,138.37,138.32,6.33078235]
[1763308413865,22.6512,138.35,138.3,1.93593088]
[1763308414246,22.6512,138.33,138.3,1.93593088]
[1763308414480,9.78882769,138.32,138.3,1.93593088]
[1763308414666,22.6512,138.29,138.13,0.72395569]
[1763308414837,22.6512,138.29,138.15,11.78882768]
[1763308415039,22.6512,138.29,138.16,0.67]
[1763308415367,9.78882769,138.32,138.16,25.32119999]
[1763308415562,32.44002769,138.32,138.18,6.33078235]
[1763308415861,32.44002769,138.32,138.26,6.33078235]
[1763308416069,22.6512,138.32,138.27,6.33078235]
[1763308416244,0.66,138.38,138.28,0.67]
[1763308416448,15.10877811,138.4,138.28,0.67]
[1763308416667,9.78882769,138.39,138.32,6.33078235]
[1763308416968,6.33078235,138.44,138.38,6.33078235]
[1763308417159,0.66,138.49,138.33,0.67]
[1763308417160,13.55166575,138.49,138.33,0.67]
[1763308417349,18.70929844,138.51,138.42,6.33078235]
[1763308417350,7.2200132,138.51,138.42,6.33078235]
[1763308417551,7.2200132,138.51,138.43,7.00078235]
[1763308417764,17.98526476,138.53,138.44,6.33078235]
[1763308418075,17.98526476,138.53,138.33,24.65119999]
[1763308418076,22.6512,138.5,138.38,0.67]
[1763308418252,0.66,138.52,138.34,7.00078235]
[1763308418253,6.33078235,138.39,138.34,7.00078235]
[1763308418567,9.78882769,138.45,138.32,6.33078235]
[1763308418767,6.33078235,138.38,138.33,6.33078235]
[1763308418943,6.33078235,138.37,138.34,0.67]
[1763308419145,9.78882769,138.39,138.35,0.67]
[1763308419344,10.44882769,138.4,138.3,0.67]
[1763308419646,51.99999999,138.45,138.3,0.67]
[1763308419647,0.66,138.43,138.34,6.33078235]
[1763308419848,22.6512,138.38,138.35,6.33078235]
[1763308420251,22.6512,138.38,138.36,0.67]
[1763308420452,6.33078235,138.37,138.26,0.67]
[1763308420659,6.33078235,138.35,138.27,0.67]
[1763308420869,6.33078235,138.35,138.3,6.33078235]
[1763308421065,10.44882769,138.37,138.29,6.33078235]
[1763308421262,10.44882769,138.37,138.27,0.67]
[1763308421263,6.33078235,138.33,138.27,0.67]
[1763308421475,6.33078235,138.31,138.27,0.67]
[1763308421661,16.11961004,138.32,138.27,7.00078235]
[1763308421858,6.33078235,138.31,138.27,0.67]
[1763308422056,6.33078235,138.31,138.28,0.67]
[1763308422454,6.33078235,138.31,138.25,0.67]
[1763308422654,9.78882769,138.32,138.19,0.67]
[1763308422655,28.98198235,138.26,138.19,0.67]
[1763308422866,22.6512,138.26,138.23,6.33078235]
[1763308423057,22.6512,138.26,138.22,6.33078235]
[1763308423267,22.6512,138.26,138.21,0.67]
[1763308423582,22.6512,138.26,138.25,6.33078235]
[1763308423754,22.6512,138.32,138.25,12.6615647]
[1763308423957,18.06405527,138.4,138.31,6.33078235]
[1763308424157,5.24018708,138.39,138.27,0.72]
[1763308424482,6.33078235,138.39,138.34,6.33078235]
[1763308424659,6.33078235,138.38,138.25,6.33078235]
[1763308424851,7.22575379,138.4,138.26,0.72]
[1763308424852,5.24260075,138.39,138.26,0.72]
[1763308425071,9.78882769,138.33,138.28,6.33078235]
[1763308425386,22.6512,138.34,138.3,6.33078235]
[1763308425562,22.6512,138.34,138.29,6.33078235]
[1763308425769,6.33078235,138.35,138.31,6.33078235]
[1763308426076,22.6512,138.35,138.31,6.33078235]
[1763308426280,13.55842456,138.36,138.32,0.72]
[1763308426587,6.33078235,138.35,138.32,0.72]
[1763308426760,28.98198235,138.37,138.32,7.05078235]
[1763308427077,6.33078235,138.36,138.32,7.05078235]
[1763308427281,9.78882769,138.37,138.33,0.72]
[1763308427282,16.11961004,138.37,138.33,0.72]
[1763308427462,13.55823624,138.37,138.33,0.72]
[1763308427665,13.55612165,138.41,138.36,6.33078235]
[1763308427971,7.2253393,138.41,138.37,6.33078235]
[1763308428178,7.2253393,138.41,138.29,18.07738198]
[1763308428179,6.33078235,138.38,138.34,0.72]
[1763308428363,6.33078235,138.38,138.27,22.6512]
[1763308428364,6.33078235,138.36,138.25,6.33078235]
[1763308428571,32.44002769,138.37,138.26,0.72]
[1763308428780,6.33078235,138.35,138.31,6.33078235]
[1763308428981,6.33078235,138.35,138.26,0.72]
[1763308429156,6.33078235,138.35,138.3,6.33078235]
[1763308429366,6.33078235,138.35,138.31,6.33078235]
[1763308429573,23.3472142,138.36,138.32,7.05078235]
[1763308429880,6.33078235,138.35,138.26,0.72]
[1763308430086,6.33078235,138.35,138.3,6.33078235]
[1763308430384,9.78882769,138.34,138.28,6.33078235]
[1763308430561,16.11961004,138.34,138.29,6.33078235]
[1763308430753,22.6512,138.33,138.3,6.33078235]
[1763308430954,9.78882769,138.35,138.26,0.72]
[1763308431159,9.78882769,138.35,138.31,6.33078235]
[1763308431480,9.78882769,138.39,138.34,6.33078235]
[1763308431678,16.11961004,138.37,138.34,0.72]
[1763308431885,13.55726016,138.38,138.34,0.72]
[1763308432069,7.22647781,138.38,138.34,0.72]
[1763308432272,13.55726016,138.38,138.34,7.05078235]
[1763308432591,22.6512,138.34,138.3,6.33078235]
[1763308432767,22.6512,138.34,138.32,0.72]
[1763308432974,22.6512,138.34,138.26,0.72]
[1763308433176,22.6512,138.34,138.31,6.33078235]
[1763308433385,9.78882769,138.37,138.33,6.33078235]
[1763308433587,36.2085064,138.38,138.3,7.23059276]
[1763308433796,9.78882769,138.37,138.33,6.33078235]
[1763308433970,16.11961004,138.37,138.32,6.33078235]
[1763308434589,6.33078235,138.36,138.33,0.72]
[1763308434759,16.11961004,138.37,138.33,0.72]
[1763308434962,16.11961004,138.37,138.32,6.33078235]
[1763308434963,6.33078235,138.35,138.29,0.72]
[1763308435159,6.33078235,138.31,138.26,7.05078235]
[1763308435383,6.33078235,138.32,138.28,6.33078235]
[1763308435669,81.01248188,138.38,138.28,6.33078235]
[1763308435670,21.73676774,138.39,138.31,12.6615647]
[1763308435865,0.68,138.44,138.38,6.33078235]
[1763308436182,6.33078235,138.41,138.28,25.31096325]
[1763308436382,0.68,138.41,138.32,6.33078235]
[1763308436696,0.68,138.46,138.4,6.33078235]
[1763308436864,0.68,138.46,138.42,6.33078235]
[1763308437066,0.68,138.46,138.41,6.33078235]
[1763308437067,6.33078235,138.45,138.41,6.33078235]
[1763308437294,0.68,138.44,138.32,6.33078235]
[1763308437464,0.68,138.44,138.37,6.33078235]
[1763308437465,6.33078235,138.41,138.37,6.33078235]
[1763308437866,0.68,138.4,138.37,6.33078235]
[1763308438065,9.78882769,138.41,138.37,6.33078235]
[1763308438479,0.68,138.4,138.37,6.33078235]
[1763308438795,16.11961004,138.41,138.36,6.33078235]
[1763308438989,0.68,138.4,138.36,6.33078235]
[1763308439182,7.01078235,138.4,138.35,6.33078235]
[1763308439387,7.01078235,138.4,138.32,6.33078235]
[1763308439388,5.29843354,138.4,138.36,6.33078235]
[1763308439601,7.90551533,138.4,138.36,6.33078235]
[1763308439798,18.85473122,138.4,138.36,6.33078235]
[1763308439978,10.46882769,138.39,138.35,6.33078235]
[1763308440172,6.33078235,138.38,138.33,6.33078235]
[1763308440367,6.33078235,138.38,138.25,6.33078235]
[1763308440368,6.33078235,138.36,138.31,6.33078235]
[1763308440594,6.33078235,138.36,138.32,6.33078235]
[1763308440793,6.33078235,138.36,138.25,6.33078235]
[1763308440794,6.33078235,138.33,138.25,6.33078235]
[1763308440999,4.62343888,138.34,138.32,6.33078235]
[1763308441186,4.62571871,138.39,138.33,6.33078235]
[1763308441381,5.30571871,138.39,138.25,24.65119999]
[1763308441579,7.22647781,138.38,138.32,6.33078235]
[1763308441787,12.53170164,138.39,138.32,6.33078235]
[1763308441971,22.6512,138.36,138.24,7.23375583]
[1763308442179,10.96173199,138.35,138.3,6.33078235]
[1763308442502,4.63094964,138.34,138.33,6.33078235]
[1763308442713,4.63094964,138.36,138.33,6.33078235]
[1763308442878,4.63094964,138.39,138.35,6.33078235]
[1763308443079,4.63094964,138.4,138.38,6.33078235]
[1763308443300,5.7197633,138.43,138.25,190.0231294]
[1763308443301,5.31094964,138.42,138.25,164.7]
[1763308443599,5.7197633,138.43,138.38,6.33078235]
[1763308443600,4.63094964,138.41,138.38,6.33078235]
[1763308443772,13.6236594,138.43,138.39,6.33078235]
[1763308443773,4.63094964,138.4,138.39,6.33078235]
[1763308443974,4.63094964,138.4,138.35,7.22758148]
[1763308443975,4.63094964,138.4,138.38,6.33078235]
[1763308444171,4.63094964,138.41,138.38,6.33078235]
[1763308444376,4.63094964,138.4,138.39,6.33078235]
[1763308444685,4.63094964,138.41,138.39,6.33078235]
[1763308445009,5.7197633,138.43,138.4,6.17880735]
[1763308445187,4.64410941,138.42,138.41,6.33078235]
[1763308446207,4.64410941,138.43,138.41,6.33078235]
[1763308446387,4.64410941,138.42,138.35,7.22804481]
[1763308446706,6.33078235,138.38,138.28,7.23170378]
[1763308446909,4.64410941,138.37,138.36,6.33078235]
[1763308447110,4.64410941,138.38,138.36,6.33078235]
[1763308447419,5.7197633,138.4,138.37,6.33078235]
[1763308447620,5.7197633,138.4,138.32,6.33078235]
[1763308447621,4.6561873,138.39,138.38,6.33078235]
[1763308449106,18.28196897,138.39,138.28,58.80971894]
[1763308449302,6.33078235,138.36,138.26,7.23274989]
[1763308449511,5.7197633,138.34,138.31,6.33078235]
[1763308449812,19.58419807,138.35,138.29,6.33078235]
[1763308449813,23.93601478,138.33,138.29,6.33078235]
[1763308450018,4.6561873,138.32,138.29,6.33078235]
[1763308450187,19.95982748,138.33,138.29,6.33078235]
[1763308450188,4.6561873,138.31,138.29,6.33078235]
[1763308450381,4.6561873,138.3,138.29,6.33078235]
[1763308450802,10.3759506,138.3,138.25,6.33078235]
[1763308451080,17.38673295,138.29,138.18,0.1]
[1763308451282,17.38673295,138.29,138.24,6.33078235]
[1763308451283,5.7197633,138.26,138.24,6.33078235]
[1763308451512,4.6561873,138.25,138.18,13.66767411]
[1763308451728,4.6561873,138.24,138.18,6.43078235]
[1763308452023,4.6561873,138.23,138.18,6.43078235]
[1763308452206,1.0,138.26,138.18,6.43078235]
[1763308452519,23.3312,138.25,138.18,0.1]
[1763308452719,6.33078235,138.23,138.18,0.1]
[1763308453018,22.6512,138.25,138.18,6.43078235]
[1763308453204,0.68,138.25,138.18,6.43078235]
[1763308453385,7.01078235,138.25,138.21,6.33078235]
[1763308453585,7.01078235,138.25,138.18,6.43078235]
[1763308453586,6.33078235,138.24,138.2,6.33078235]
[1763308453788,7.23431961,138.23,138.2,6.33078235]
[1763308453984,0.72,138.23,138.2,6.33078235]
[1763308454220,24.3712,138.26,138.2,7.23582889]
[1763308454416,1.72,138.26,138.18,13.6676726]
[1763308454624,1.0,138.26,138.25,6.33078235]
[1763308455006,5.40600684,138.35,138.25,12.6615647]
[1763308455308,7.888157,138.35,138.21,22.6512]
[1763308455493,0.66,138.34,138.22,22.6512]
[1763308455694,0.66,138.34,138.31,6.33078235]
[1763308455897,0.66,138.34,138.22,22.6512]
[1763308455898,6.99078235,138.34,138.22,22.6512]
[1763308456119,6.99078235,138.34,138.3,6.33078235]
[1763308456297,0.66,138.33,138.29,6.33078235]
[1763308456485,6.99078235,138.33,138.29,6.33078235]
[1763308456686,0.66,138.32,138.29,6.33078235]
[1763308456885,28.98198235,138.3,138.18,13.66721635]
[1763308457113,29.64198235,138.3,138.26,6.33078235]
[1763308457335,23.3112,138.3,138.26,6.33078235]
[1763308457496,22.6512,138.31,138.27,6.33078235]
[1763308457830,0.66,138.3,138.25,7.23314729]
[1763308458118,22.6512,138.32,138.29,6.33078235]
[1763308458326,0.66,138.31,138.28,6.33078235]
[1763308458487,0.66,138.31,138.23,7.23393655]
[1763308458690,0.66,138.31,138.28,6.33078235]
[1763308458919,0.66,138.31,138.21,22.6512]
[1763308459122,0.66,138.31,138.28,6.33078235]
[1763308459802,7.89035909,138.31,138.28,6.33078235]
[1763308459989,0.66,138.31,138.25,7.23300481]
[1763308460189,0.66,138.31,138.29,6.33078235]
[1763308460414,22.6512,138.32,138.29,6.33078235]
[1763308460714,0.66,138.31,138.25,13.56401063]
[1763308461013,16.77961004,138.35,138.25,31.64719327]
[1763308461231,0.66,138.34,138.3,6.33078235]
[1763308461523,22.6512,138.31,138.2,7.23589001]
[1763308461812,7.23274989,138.26,138.19,7.23640921]
[1763308461998,13.56315098,138.27,138.19,7.23640921]
[1763308462197,6.33078235,138.23,138.18,0.1]
[1763308462408,6.33078235,138.23,138.19,6.33078235]
[1763308462619,25.31293563,138.27,138.11,1.99999999]
[1763308462825,0.72,138.18,138.04,3.71708676]
[1763308462994,0.72,138.18,138.02,7.23813531]
[1763308462995,24.65119999,138.15,138.02,7.23813531]
[1763308463313,1.99999999,138.07,138.01,1.93593088]
[1763308463490,1.99999999,138.06,138.01,1.93593088]
[1763308463689,1.99999999,138.04,138.01,1.93593088]
[1763308463883,1.99999999,138.03,138.01,1.93593088]
[1763308464120,1.99999999,138.05,138.02,0.69]
[1763308464639,11.78882768,138.02,138.01,1.93593088]
[1763308464930,1.99999999,138.03,138.02,0.69]
[1763308465086,9.78882769,138.04,138.01,1.93593088]
[1763308465288,1.99999999,138.03,138.01,1.93593088]
[1763308465598,1.99999999,138.04,138.01,1.93593088]
[1763308465803,22.6512,138.06,138.01,1.93593088]
[1763308465804,1.99999999,138.05,138.01,1.93593088]
[1763308466024,2.55999999,138.06,138.01,1.93593088]
[1763308466237,1.99999999,138.02,138.01,1.83593088]
[1763308466520,9.78882769,138.08,138.01,12.684939]
[1763308466521,1.99999999,138.08,138.01,12.684939]
[1763308466729,9.78882769,138.06,138.02,0.69]
[1763308466946,1.99999999,138.08,138.05,10.15900812]
[1763308467098,1.99999999,138.08,138.07,10.15900812]
[1763308467304,1.99999999,138.09,138.07,10.84900812]
[1763308467500,1.99999999,138.09,138.08,10.15900812]
[1763308467704,1.99999999,138.08,138.04,0.69]
[1763308468339,32.44002769,138.06,138.01,1.83593088]
[1763308468621,11.78882768,138.06,138.02,0.69]
[1763308468919,1.99999999,138.05,138.03,10.84900812]
[1763308469128,1.99999999,138.06,138.03,10.15900812]
[1763308469435,1.99999999,138.06,138.01,1.83593088]
[1763308469436,24.65119999,138.02,138.01,1.83593088]
[1763308469635,44.5990358,138.02,138.01,1.83593088]
[1763308469797,19.03467942,138.01,138.0,0.4]
[1763308470006,11.78882768,137.95,137.9,0.69]
[1763308470606,1.99999999,137.95,137.9,0.69]
[1763308470801,1.99999999,137.95,137.84,10.15900812]
[1763308470802,9.78882769,137.92,137.87,0.69]
[1763308471019,1.99999999,137.93,137.87,0.69]
[1763308471220,1.99999999,137.91,137.82,0.69]
[1763308471528,42.59903581,137.92,137.87,10.15900812]
[1763308471529,9.78882769,137.9,137.87,10.15900812]
[1763308471731,1.99999999,137.93,137.89,10.15900812]
[1763308471903,1.99999999,137.95,137.92,10.15900812]
[1763308472101,1.99999999,137.95,137.91,0.69]
[1763308472303,1.99999999,137.87,137.79,0.69]
[1763308472507,24.65119999,137.83,137.79,0.69]
[1763308472807,11.78882768,137.84,137.82,10.15900812]
[1763308473037,1.99999999,137.85,137.83,10.15900812]
[1763308473222,56.65969244,138.05,137.79,0.69]
[1763308473223,9.78882769,137.9,137.79,0.69]
[1763308473401,1.99999999,137.91,137.89,10.15900812]
[1763308473604,50.0,137.97,137.84,10.15900812]
[1763308473605,9.78882769,137.9,137.84,10.15900812]
[1763308473809,1.99999999,137.92,137.86,7.25373567]
[1763308474046,1.99999999,137.93,137.87,0.69]
[1763308474210,1.99999999,137.92,137.87,0.69]
[1763308474418,1.99999999,137.93,137.87,0.69]
[1763308474620,1.99999999,137.9,137.85,0.69]
[1763308474928,1.99999999,137.95,137.89,10.15900812]
[1763308475110,22.6512,137.92,137.8,7.25685258]
[1763308475310,1.99999999,137.89,137.85,0.69]
[1763308475548,1.99999999,137.89,137.8,7.25685258]
[1763308475712,1.99999999,137.88,137.85,10.15900812]
[1763308475912,1.99999999,137.88,137.86,10.15900812]
[1763308476112,1.99999999,137.9,137.87,10.15900812]
[1763308476346,1.99999999,137.95,137.89,10.15900812]
[1763308476573,33.55992914,138.05,137.94,10.15900812]
[1763308476574,1.99999999,137.97,137.94,10.15900812]
[1763308476861,33.55992914,138.05,137.96,10.15900812]
[1763308476862,12.15900811,138.05,137.96,10.15900812]
[1763308477012,12.15900811,138.05,137.92,10.15900812]
[1763308477013,1.99999999,138.03,138.0,10.15900812]
[1763308477215,1.99999999,138.02,138.0,10.15900812]
[1763308477410,1.99999999,138.02,138.01,10.15900812]
[1763308477956,1.99999999,138.08,138.02,7.24532676]
[1763308478156,1.99999999,138.08,138.0,18.11568189]
[1763308478157,1.99999999,138.08,138.03,0.69]
[1763308478315,4.55836167,138.16,138.03,0.69]
[1763308478316,1.99999999,138.09,138.03,0.69]
[1763308478663,1.99999999,138.04,138.0,0.69]
[1763308478828,1.99999999,138.02,138.0,10.84900812]
[1763308479151,21.9478358,138.01,137.93,0.69]
[1763308479362,1.99999999,137.98,137.93,0.69]
[1763308479572,11.78882768,138.01,137.96,10.15900812]
[1763308479857,9.78882769,138.02,137.99,10.15900812]
[1763308480030,1.99999999,138.04,138.01,10.15900812]
[1763308480233,1.99999999,138.01,137.96,0.69]
[1763308480558,1.99999999,138.04,138.0,10.15900812]
[1763308480718,1.99999999,138.09,138.03,10.15900812]
[1763308481046,1.99999999,138.06,138.04,9.96158028]
[1763308481247,50.0,138.15,138.01,0.69]
[1763308481248,1.99999999,138.1,138.05,9.96158028]
[1763308481421,1.99999999,138.1,138.01,0.69]
[1763308481422,1.99999999,138.08,138.06,10.65158028]
[1763308481618,1.99999999,138.08,137.96,22.6512]
[1763308481619,1.99999999,138.07,138.05,9.96158028]
[1763308481821,11.96158027,138.11,138.06,9.96158028]
[1763308482156,14.96046095,138.11,138.03,7.24480185]
[1763308482363,5.7197633,138.1,138.07,9.96158028]
[1763308482671,5.7197633,138.1,138.04,0.69]
[1763308482956,1.99999999,138.08,138.05,9.96158028]
[1763308483466,22.6512,138.1,138.07,9.96158028]
[1763308483638,1.99999999,138.09,138.06,0.69]
[1763308483837,24.65119999,138.1,138.0,7.24607733]
[1763308484158,1.99999999,138.05,138.02,9.96158028]
[1763308484359,1.99999999,138.04,138.02,9.96158028]
[1763308484560,1.99999999,138.07,138.03,9.96158028]
[1763308484858,1.99999999,138.07,138.03,10.68158028]
[1763308485466,1.99999999,138.04,138.02,9.96158028]
[1763308485641,22.6512,138.08,138.03,9.96158028]
[1763308485839,1.99999999,138.09,138.06,9.96158028]
[1763308486059,11.96158027,138.11,138.07,9.96158028]
[1763308486248,1.99999999,138.11,138.07,9.96158028]
[1763308486436,1.99999999,138.08,138.07,10.68158028]
[1763308486633,1.99999999,138.12,138.07,9.96158028]
[1763308486931,1.99999999,138.1,138.08,0.72]
[1763308487139,14.52511479,138.13,138.09,9.96158028]
[1763308487140,16.52511478,138.13,138.09,9.96158028]
[1763308487343,1.99999999,138.07,138.0,0.72]
[1763308487523,1.99999999,138.04,138.0,9.96158028]
[1763308487726,22.6512,138.06,138.0,9.96158028]
[1763308487727,24.65119999,138.06,138.03,9.96158028]
[1763308487939,1.99999999,138.04,138.01,0.72]
[1763308488149,9.96158028,138.05,138.01,10.68158028]
[1763308488350,11.96158027,138.06,138.02,9.96158028]
[1763308488561,1.99999999,138.05,138.04,9.96158028]
[1763308489162,1.99999999,138.05,138.03,10.68158028]
[1763308489333,38.15979099,138.11,138.04,9.96158028]
[1763308489334,4.57287622,138.07,138.04,9.96158028]
[1763308489530,6.5733139,138.1,138.06,9.96158028]
[1763308489846,11.96158027,138.07,138.02,9.96158028]
[1763308490051,1.99999999,138.05,138.02,0.72]
[1763308490357,16.53409716,138.05,138.01,9.96158028]
[1763308490662,1.99999999,138.06,138.02,10.68158028]
[1763308490835,6.57798234,138.07,138.03,9.96158028]
[1763308491029,1.99999999,138.06,138.03,9.96158028]
[1763308491233,1.99999999,138.05,138.02,9.96158028]
[1763308491455,1.99999999,138.03,137.99,0.72]
[1763308491627,1.99999999,138.03,138.0,9.96158028]
[1763308491830,11.96158027,138.02,137.9,19.75040797]
[1763308492027,4.57798235,138.03,137.9,19.75040797]
[1763308492028,7.71609527,138.06,138.01,9.96158028]
[1763308492332,6.59197614,138.05,137.94,22.6512]
[1763308492524,6.59197614,138.05,138.04,9.96158028]
[1763308492525,1.99999999,138.05,138.04,9.96158028]
[1763308492751,6.59197614,138.07,138.02,0.72]
[1763308493068,4.59197615,138.09,138.06,9.96158028]
[1763308493235,4.59197615,138.09,138.02,0.72]
[1763308493236,4.59197615,138.09,138.08,9.96158028]
[1763308493428,4.60027997,138.09,138.08,9.96158028]
[1763308493834,4.60027997,138.1,138.08,0.72]
[1763308494064,4.60110163,138.11,138.09,7.96165399]
[1763308494357,3.88110163,138.12,138.1,10.68158028]
[1763308494529,5.71609528,138.17,138.11,9.96158028]
[1763308494727,1.99999999,138.15,138.11,0.72]
[1763308495049,1.99999999,138.16,138.14,9.96158028]
[1763308495229,1.99999999,138.15,138.12,0.72]
[1763308495638,5.71609528,138.17,138.12,0.72]
[1763308495963,1.99999999,138.15,138.12,7.95964414]
[1763308496158,5.71609528,138.17,138.12,7.95964414]
[1763308496372,5.71609528,138.17,138.15,9.96158028]
[1763308496542,7.71609527,138.17,138.13,0.72]
[1763308496882,1.99999999,138.15,138.1,0.72]
[1763308497063,1.99999999,138.12,138.07,0.72]